Cogmind - Beta 16.1 @@@ ROGUE MODE // 2026.04.18 @ 13:59:04 Player: Maelyn Result: Destroyed by Y-54 Guardian with Flak Gun Performance ------------- Evolutions (3) 1500 Regions Visited (9) 1800 Robots Destroyed (91) 455 Value Destroyed (2724) 2724 Prototype IDs (29) 580 Alien Tech Used (0) 0 Bonus (867) 867 TOTAL SCORE: 7926 Bonus ------- High Alert Combat Kills 155 Follower Combat Kills 275 Entered Garrisons 200 Aligned with FarCom 300 Friendly Fire -63 Cogmind --------- Core Integrity 0/700 Matter 25/300 Energy 99/100 System Corruption 7% Temperature Cool (12) Movement Core (50) Location -7/Garrison Parts ------- > --- POWER (1) -------- (None) > --- PROPULSION (5) --- (None) > --- UTILITY (5) ------ Machine Analyzer > --- WEAPON (2) ------- (None) > --- INVENTORY (5) ---- Light Nuclear Core Relay Coupler [NC] (27) Relay Coupler [Grunt] (25) Hypervelocity Gauss Rifle Peak State ------------ > --- POWER ------------ Light Nuclear Core > --- PROPULSION ------- Improved VTOL Module Flying Fortress v7 > --- UTILITY ---------- Improved Heat Sink Medium Storage Unit Large Battery Machine Analyzer Improved Light Armor Plating > --- WEAPON ----------- Hypervelocity Gauss Rifle Hypervelocity Gauss Rifle > --- INVENTORY -------- Light Nuclear Core Improved Flight Unit Relay Coupler [NC] Relay Coupler [Grunt] Pulse Rifle Advanced Beam Rifle Grenade Launcher Rocket Launcher Datajack [Rating: 62] Favorites ----------- Power Light Nuclear Core Engine Light Ion Engine Power Core Light Nuclear Core Propulsion Light Treads Treads Light Treads Leg Aluminum Leg Hover Unit Airjet Flight Unit Improved VTOL Module Utility Large Storage Unit Device Heat Sink Storage Large Storage Unit Processor Transport Network Coupler Protection Reactive Plating Weapon Advanced Beam Rifle Energy Gun Advanced Beam Rifle Energy Cannon Beam Cannon Ballistic Gun Hypervelocity Gauss Rifle Ballistic Cannon Improved Light Cannon Launcher Rocket Launcher Slashing Weapon Axe Build | -11 -10 -10 -9 -9 -9 -8 -8 -7 -7 ------- Run | Yrd Mat Min Mat Min Exi Min Mat Fac Gar Slots Evolved 6 | . . . 2 . . . 2 2 . Power . | . . . . . . . . . . Propulsion 3 | . . . 1 . . . 1 1 . Utility 3 | . . . 1 . . . 1 1 . Weapon . | . . . . . . . . . . Parts Attached 66 | 6 1 . 16 3 . 1 27 5 7 Power 7 | 1 . . 2 . . . 3 . 1 Engine 2 | 1 . . 1 . . . . . . Core 5 | . . . 1 . . . 3 . 1 Reactor . | . . . . . . . . . . Propulsion 25 | 2 . . 7 2 . . 12 1 1 Treads 15 | 2 . . 2 2 . . 9 . . Leg 4 | . . . 2 . . . 2 . . Wheel . | . . . . . . . . . . Hover 3 | . . . 3 . . . . . . Flight 3 | . . . . . . . 1 1 1 Utility 15 | 1 . . 5 . . . 4 4 1 Device 5 | . . . 3 . . . 1 1 . Storage 4 | 1 . . 1 . . . . 2 . Processor 2 | . . . 1 . . . . 1 . Hackware . | . . . . . . . . . . Protection 4 | . . . . . . . 3 . 1 Artifact . | . . . . . . . . . . Weapon 19 | 2 1 . 2 1 . 1 8 . 4 Energy Gun 10 | 2 1 . . . . . 6 . 1 Energy Cannon 1 | . . . 1 . . . . . . Ballistic Gun 2 | . . . . . . . . . 2 Ballistic Cannon 2 | . . . 1 1 . . . . . Launcher 3 | . . . . . . 1 1 . 1 Special Weapon . | . . . . . . . . . . Impact Weapon . | . . . . . . . . . . Slashing Weapon 1 | . . . . . . . 1 . . Piercing Weapon . | . . . . . . . . . . Special Melee Weapon . | . . . . . . . . . . Unidentified Prototypes 5 | . . . . . . . 5 . . Parts Lost 34 | . . 1 7 . . 2 13 . 11 Power 5 | . . . 2 . . . 2 . 1 Propulsion 14 | . . 1 3 . . . 7 . 3 Utility 7 | . . . 1 . . . 3 . 3 Weapon 8 | . . . 1 . . 2 1 . 4 Highest Loss Streak 9 | . . 1 4 . . 2 4 . 9 To Critical Strikes 3 | . . . 2 . . . 1 . . Average Backups 9 | 2 6 7 8 12 12 11 11 9 7 Power . | . 1 1 . . . . . 1 1 Propulsion 4 | 1 2 2 4 8 7 6 4 1 . Utility 1 | . . . 1 2 2 3 2 2 1 Weapon 3 | 1 3 4 2 2 3 2 3 3 3 Tool/Special . | . . . . . . . . . . Unused Backups 12 | . . . 1 . 1 . 4 . 6 Power 2 | . . . . . . . . . 2 Propulsion 4 | . . . . . 1 . 3 . . Utility 2 | . . . . . . . . . 2 Weapon 3 | . . . 1 . . . 1 . 1 Tool/Special 1 | . . . . . . . . . 1 Average Slot Usage (%) 84 | . 82 58 78 100 100 95 88 70 66 Engine 3 | . 13 14 5 . . . . . . Core 6 | . . . 1 11 11 11 8 7 6 Treads 19 | . 28 15 12 21 22 22 24 1 . Leg 1 | . . . 1 . . . 1 . . Hover 3 | . . . 5 11 11 11 . . . Flight 2 | . . . . . . . 1 11 13 Device 7 | . . . 13 11 11 11 5 5 5 Storage 10 | . 14 14 11 11 11 11 9 13 13 Processor 7 | . . . 5 11 11 11 9 7 7 Protection 4 | . . . . . . . 9 9 5 Energy Gun 10 | . 26 14 3 . . . 16 5 2 Energy Cannon 3 | . . . 10 11 11 7 . . . Ballistic Cannon 3 | . . . 7 11 11 8 . . . Peak Build Rating 62 | 6 6 5 20 19 21 21 32 58 62 Average Rating 21 | 3 5 4 10 18 19 20 26 54 51 On Entrance 17 | . 6 5 4 20 19 21 20 25 55 Avg Prop Armor Cover (%) 6 | . . . 10 4 4 4 10 . . Naked Turns . | . . . . . . . . . . Heaviest Build 49 | 11 12 10 33 33 32 32 49 32 36 Greatest Support 82 | 40 40 20 60 46 46 46 82 55 55 Greatest Overweight (x) 15 | 2 . . 9 . . . 15 . 5 Average Overweight (x) . | . . . 1 . . . 1 . . Largest Inventory Capacity 15 | 8 8 8 15 15 15 15 15 15 10 Average Capacity 12 | 7 8 8 12 15 15 15 15 11 9 Most Carried 15 | 6 7 8 12 13 15 15 15 15 10 Average Carried 11 | 3 6 7 8 12 13 14 14 8 7 Final Capacity 15 | 8 8 8 15 15 15 15 15 10 5 Final Carried 15 | 4 7 8 12 13 15 13 15 8 4 Class Distribution -------------------- 63% | Mutant 36% | Scavenger-Mutant Dominant Class ---------------- Mutant | -10/Materials Mutant | -10/Mines Mutant | -9/Materials Mutant | -9/Mines Mutant | -9/Exiles Mutant | -8/Mines Scavenger-Mutant | -8/Materials Scavenger-Mutant | -7/Factory Mutant | -7/Garrison Resources | -11 -10 -10 -9 -9 -9 -8 -8 -7 -7 ----------- Run | Yrd Mat Min Mat Min Exi Min Mat Fac Gar Matter Collected 1423 | 103 162 . 307 20 . 4 421 . 406 Remotely . | . . . . . . . . . . Salvage Created 3132 | . 413 43 653 . . 155 1530 . 338 Parts 169 | . 18 1 34 . . 15 79 . 22 Haulers Intercepted 7 | . . . 3 . . . 4 . . Recyclers Shooed 2 | . . . . . . . 2 . . Parts Field Recycled . | . . . . . . . . . . Retrieved Matter . | . . . . . . . . . . Parts Self-Destructed . | . . . . . . . . . . Prevented . | . . . . . . . . . . Parts Restored . | . . . . . . . . . . Kills | -11 -10 -10 -9 -9 -9 -8 -8 -7 -7 ------- Run | Yrd Mat Min Mat Min Exi Min Mat Fac Gar Combat Hostiles Destroyed 67 | . 11 3 13 . . 3 28 . 9 Melee 2 | . . . . . . . 2 . . Guns 48 | . 11 3 2 . . . 26 . 6 Cannons 12 | . . . 10 . . 2 . . . AOE 4 | . . . . . . 1 . . 3 Classes Destroyed 13 | . 4 . 5 . . 2 1 . 1 Worker 4 | . 1 . . . . 1 2 . . Builder 3 | . . . . . . 2 1 . . Tunneler 1 | . . . . . . 1 . . . Hauler 7 | . . . 3 . . . 4 . . Recycler 3 | . . . 1 . . 1 1 . . Operator 2 | . 1 . . . . . 1 . . Watcher 4 | . . . 1 . . . 3 . . Swarmer 21 | . 3 3 3 . . . 11 . 1 Grunt 29 | . 8 . 5 . . 3 8 . 5 Duelist 1 | . . . 1 . . . . . . Sentry 13 | . . . 4 . . . 7 . 2 Hunter 2 | . . . . . . . 2 . . Programmer 1 | . . . . . . . . . 1 Best Kill Streak 8 | . 6 3 4 . . 8 5 . 3 Combat Bots Only 5 | . 5 3 3 . . 2 4 . 3 Max Kills in Single Turn 2 | . 1 1 2 . . 2 1 . 2 Gunslinging . | . . . . . . . . . . Exploded 2 | . . . . . . 1 . . 2 Melee 1 | . . . . . . . 1 . . Uniques/NPCs Destroyed . | . . . . . . . . . . Combat | -11 -10 -10 -9 -9 -9 -8 -8 -7 -7 -------- Run | Yrd Mat Min Mat Min Exi Min Mat Fac Gar Hostile Shots Fired 816 | . 60 12 90 . . 31 262 . 361 Missed 276 | . 14 5 26 . . 15 61 . 155 Hits 540 | . 46 7 64 . . 16 201 . 206 Melee 4 | . . . 4 . . . . . . Projectile 536 | . 46 7 60 . . 16 201 . 206 Critical Strikes 35 | . 2 . 6 . . . 15 . 12 Damage Taken 6580 | . 519 62 853 . . 332 2244 . 2570 Core 1447 | . 172 25 219 . . 18 311 . 702 Absorbed by Shields 106 | . . . . . . . . . 106 Ignored by Resistances 179 | . . . . . . . 179 . . Core Remaining (%) 51 | 100 . 21 . . . 40 43 . . Volleys Fired 320 | . 48 10 49 . . 21 118 . 74 Largest 2 | . 2 1 2 . . 2 2 . 2 Hottest 122 | . 100 50 110 . . 93 122 . 94 Shots Fired 497 | . 89 10 91 . . 23 181 . 103 Gun 375 | . 89 10 9 . . . 181 . 86 Cannon 97 | . . . 82 . . 15 . . . Launcher 25 | . . . . . . 8 . . 17 Special . | . . . . . . . . . . Kinetic 103 | . . . 33 . . 13 . . 57 Thermal 369 | . 89 10 58 . . 2 181 . 29 Explosive 25 | . . . . . . 8 . . 17 Electromagnetic . | . . . . . . . . . . Robot Hit Streak 13 | . 12 2 13 . . 3 9 . 13 Robot Miss Streak 6 | . 4 3 3 . . 3 6 . 6 Penetration Max 1 | . . . . . . . . . 1 Secondary Targets 6 | . 1 . . . . . 4 . 1 Max Gunslinging Chain 1 | . 1 . . . . . 1 . 1 Shots Hit Robots 290 | . 54 5 62 . . 11 106 . 52 Core Hits 152 | . 24 3 22 . . 14 54 . 35 Critical Kills 3 | . . . 1 . . . . . 2 Critical Parts Destroyed 9 | . . . . . . . . . 9 Critical Strikes 30 | . 1 1 3 . . . 12 . 13 Burn 17 | . 1 1 1 . . . 12 . 2 Meltdown 1 | . . . 1 . . . . . . Destroy 11 | . . . . . . . . . 11 Blast 1 | . . . 1 . . . . . . Melee Attacks 7 | . . . . . . . 2 . 5 Impact . | . . . . . . . . . . Slashing 7 | . . . . . . . 2 . 5 Piercing . | . . . . . . . . . . Sneak Attacks . | . . . . . . . . . . Combat Hostiles . | . . . . . . . . . . Follow-up Attacks . | . . . . . . . . . . Damage Inflicted 5684 | . 662 62 1170 . . 603 2137 . 1050 Guns 3493 | . 653 62 87 . . . 2052 . 639 Cannons 1240 | . . . 1068 . . 172 . . . Explosions 821 | . . . . . . 425 . . 396 Melee 68 | . . . . . . . 68 . . Ramming 62 | . 9 . 15 . . 6 17 . 15 Kinetic 892 | . . . 488 . . 155 . . 249 Thermal 3841 | . 653 62 667 . . 17 2052 . 390 Explosive 821 | . . . . . . 425 . . 396 Electromagnetic . | . . . . . . . . . . Impact . | . . . . . . . . . . Slashing 68 | . . . . . . . 68 . . Piercing . | . . . . . . . . . . Highest Corruption 7 | . . . . . . . . . 7 Average Corruption 4 | . . . . . . . . . 4 Corruption Purged . | . . . . . . . . . . Corruption Blocked . | . . . . . . . . . . Effects 2 | . . . . . . . . . 2 Message Errors 1 | . . . . . . . . . 1 Matter Fused 1 | . . . . . . . . . 1 Overload Shots . | . . . . . . . . . . Overflow Damage 6 | . . . . . . . . . 6 Projectiles . | . . . . . . . . . . Explosions 6 | . . . . . . . . . 6 Melee . | . . . . . . . . . . Knockbacks 7 | . . . 4 . . 2 . . 1 Impact 2 | . . . 1 . . . . . 1 Kinetic 5 | . . . 3 . . 2 . . . Secondary . | . . . . . . . . . . Self-Inflicted Damage 130 | . . . . . . 47 1 . 82 Shots 4 | . . . . . . 1 . . 3 Rammed 17 | . 3 . 3 . . 2 6 . 3 Targets Rammed 18 | . 3 . 3 . . 2 7 . 3 Kicked . | . . . . . . . . . . Crushed 1 | . . . . . . . 1 . . Highest Temperature 857 | . 407 100 192 . . 45 857 . 152 Average Temperature 147 | . 159 50 47 . . 26 201 . 42 Received Heat Transfer 1948 | . 270 . 219 . . 144 738 . 577 Effects 38 | . 2 . . . . . 36 . . Shutdowns 5 | . 1 . . . . . 4 . . Energy Bleed 1 | . . . . . . . 1 . . Interference 7 | . . . . . . . 7 . . Matter Decay 4 | . . . . . . . 4 . . Short Circuit 4 | . 1 . . . . . 3 . . Damage (minor) 4 | . . . . . . . 4 . . Damage (major) 13 | . . . . . . . 13 . . Siege Activations . | . . . . . . . . . . Martial Activations . | . . . . . . . . . . Shielding Activations . | . . . . . . . . . . Robots Disrupted . | . . . . . . . . . . Combat Hostiles . | . . . . . . . . . . Robots Corrupted . | . . . . . . . . . . Combat Hostiles . | . . . . . . . . . . Parts Fried . | . . . . . . . . . . Impact Corruptions . | . . . . . . . . . . Robots Melted 1 | . . . 1 . . . . . . Combat Hostiles 1 | . . . 1 . . . . . . Parts Melted 24 | . 8 2 5 . . . 9 . . Heat Transferred 9291 | . 1857 259 1554 . . 37 4773 . 811 Parts Sabotaged . | . . . . . . . . . . Parts Stolen . | . . . . . . . . . . Parts Stripped . | . . . . . . . . . . Power Chain Reactions . | . . . . . . . . . . Alert | -11 -10 -10 -9 -9 -9 -8 -8 -7 -7 ------- Run | Yrd Mat Min Mat Min Exi Min Mat Fac Gar Maximum Alert Level 3 | . . . . . . . 1 . 3 Low Security (%) 78 | 100 100 100 100 100 . 100 68 100 14 Level 1 16 | . . . . . . . 31 . 29 Level 2 2 | . . . . . . . . . 28 Level 3 2 | . . . . . . . . . 27 Level 4 . | . . . . . . . . . . Level 5 . | . . . . . . . . . . High Security . | . . . . . . . . . . Max Security . | . . . . . . . . . . Peak Influence 789 | . 141 90 97 . . 92 384 166 789 Initial 162 | . . 30 11 . . . 31 162 116 Average 112 | . 67 58 28 . . 20 111 158 479 Influence Increases 2432 | . 312 70 385 . . 123 815 14 713 Destroy 0b10 Robot/C 1500 | . 220 60 260 . . 60 560 . 340 Destroy 0b10 Robot/NC 120 | . 10 . 25 . . 25 60 . . Destroy Leader 312 | . 50 10 78 . . 10 164 . . Allied During Kill 10 | . . . . . . . . . 10 Successful Hack 14 | . . . . . . . . 14 . Disable Machine 90 | . . . 15 . . . . . 75 Anti-Garrison Action 50 | . . . . . . . . . 50 Destroy Structure 111 | . 2 . 7 . . 28 1 . 73 Lose Combat Pursuer 225 | . 30 . . . . . 30 . 165 Influence Decreases 1733 | . 235 117 415 . . 41 540 205 180 Entered New Map 362 | . . 47 19 . . . 51 195 50 Time Decay 1071 | . 235 60 346 . . 31 389 10 . Lost Part 280 | . . 10 50 . . 10 100 . 110 Lost Ally 20 | . . . . . . . . . 20 Squads Dispatched 8 | . 3 . . . . . 5 . . Investigation 2 | . 1 . . . . . 1 . . Extermination . | . . . . . . . . . . Reinforcement 3 | . 2 . . . . . 1 . . Assault . | . . . . . . . . . . Garrison 3 | . . . . . . . 3 . . Intercept . | . . . . . . . . . . Searches Triggered . | . . . . . . . . . . Construction Impeded . | . . . . . . . . . . Haulers Reinforced . | . . . . . . . . . . Active Scanning Responses . | . . . . . . . . . . Cargo Convoy Interrupts . | . . . . . . . . . . Stealth | -11 -10 -10 -9 -9 -9 -8 -8 -7 -7 --------- Run | Yrd Mat Min Mat Min Exi Min Mat Fac Gar Distress Signals 5 | . . . 2 . . . 3 . . Communications Jammed . | . . . . . . . . . . Distress Signals . | . . . . . . . . . . Times Spotted 130 | . 16 2 20 . . 3 49 . 40 Peak Tracking Total 13 | . 4 2 6 . . 3 7 . 13 Tactical Retreats 8 | . 1 . . . . . 2 . 5 Traps | -11 -10 -10 -9 -9 -9 -8 -8 -7 -7 ------- Run | Yrd Mat Min Mat Min Exi Min Mat Fac Gar Traps Triggered 11 | . 3 . . . . . 1 . 7 Indirectly . | . . . . . . . . . . Trap Hack Attempts . | . . . . . . . . . . Triggered . | . . . . . . . . . . Disarmed . | . . . . . . . . . . Reprogrammed . | . . . . . . . . . . Reused . | . . . . . . . . . . Traps Extracted . | . . . . . . . . . . Installed . | . . . . . . . . . . Triggered . | . . . . . . . . . . Machines | -11 -10 -10 -9 -9 -9 -8 -8 -7 -7 ---------- Run | Yrd Mat Min Mat Min Exi Min Mat Fac Gar Machines Disabled 7 | . . . 1 . . . . . 6 Max in Single Turn 1 | . . . 1 . . . . . 1 Garrison Relay 1 | . . . . . . . . . 1 Machines Repaired . | . . . . . . . . . . Machines Dismantled . | . . . . . . . . . . Machines Sabotaged . | . . . . . . . . . . Overloaded Fab Kills . | . . . . . . . . . . Hacking | -11 -10 -10 -9 -9 -9 -8 -8 -7 -7 --------- Run | Yrd Mat Min Mat Min Exi Min Mat Fac Gar Machines Accessed 9 | . . . 4 . 1 . 2 1 1 Terminals 6 | . . . 3 . . . 2 . 1 Fabricators . | . . . . . . . . . . Repair Stations . | . . . . . . . . . . Recycling Units . | . . . . . . . . . . Scanalyzers 1 | . . . 1 . . . . . . Garrison Access 1 | . . . . . . . . 1 . Total Hacks 17 | . . . 8 . 1 . 5 2 1 Successful 11 | . . . 5 . 1 . 3 1 1 Failed 6 | . . . 3 . . . 2 1 . Catastrophic 1 | . . . . . . . 1 . . Database Lockouts . | . . . . . . . . . . Manual 11 | . . . 5 . 1 . 5 . . Terminals 11 | . . . 5 . . . 5 . 1 Fabricators . | . . . . . . . . . . Repair Stations . | . . . . . . . . . . Recycling Units . | . . . . . . . . . . Scanalyzers 3 | . . . 3 . . . . . . Garrison Access 2 | . . . . . . . . 2 . Terminal Hacks 2 | . . . . . 1 . . . 1 Open Door 1 | . . . . . . . . . 1 Proto ID Catalog 1 | . . . . . 1 . . . . Fabricator Hacks . | . . . . . . . . . . Repair Station Hacks . | . . . . . . . . . . Recycling Unit Hacks . | . . . . . . . . . . Scanalyzer 2 | . . . 2 . . . . . . Insert Component 1 | . . . 1 . . . . . . Analyze 1 | . . . 1 . . . . . . Garrison Access Hacks 1 | . . . . . . . . 1 . Unlock Access 1 | . . . . . . . . 1 . Unauthorized Hacks 5 | . . . 3 . . . 2 . . Terminals 5 | . . . 3 . . . 2 . . Botnet 5 | . . . 3 . . . 2 . . Fabricators . | . . . . . . . . . . Repair Stations . | . . . . . . . . . . Recycling Units . | . . . . . . . . . . Scanalyzers . | . . . . . . . . . . Garrison Access . | . . . . . . . . . . Data Cores Recovered . | . . . . . . . . . . Used . | . . . . . . . . . . Hacking Detections 4 | . . . 1 . . . 1 1 1 Full Trace Events . | . . . . . . . . . . Feedback Events . | . . . . . . . . . . Feedback Blocked . | . . . . . . . . . . Robot Schematics Acquired . | . . . . . . . . . . Robots Built . | . . . . . . . . . . Authchips . | . . . . . . . . . . Time . | . . . . . . . . . . Total Robot Build Rating . | . . . . . . . . . . Part Schematics Acquired 1 | . . . 1 . . . . . . Parts Built . | . . . . . . . . . . Authchips . | . . . . . . . . . . Time . | . . . . . . . . . . Total Part Build Rating . | . . . . . . . . . . Part Studies Acquired . | . . . . . . . . . . Parts Repaired . | . . . . . . . . . . Time . | . . . . . . . . . . Parts Recycled . | . . . . . . . . . . Recycled Matter . | . . . . . . . . . . Retrieved Matter . | . . . . . . . . . . Retrieved Components . | . . . . . . . . . . Parts Scanalyzed 1 | . . . 1 . . . . . . Part Schematics Acquired 1 | . . . 1 . . . . . . Parts Damaged . | . . . . . . . . . . Bothacking | -11 -10 -10 -9 -9 -9 -8 -8 -7 -7 ------------ Run | Yrd Mat Min Mat Min Exi Min Mat Fac Gar Used RIF Installer . | . . . . . . . . . . Robots Hacked . | . . . . . . . . . . Non-combat . | . . . . . . . . . . Combat . | . . . . . . . . . . Robot Hacks Applied . | . . . . . . . . . . Relay Couplers Released 5 | . . . . . . . . . 5 Machine Destruction 5 | . . . . . . . . . 5 Fabnet Peak Effective % . | . . . . . . . . . . Robots Rewired . | . . . . . . . . . . Allies Hacked . | . . . . . . . . . . Hacks Repelled . | . . . . . . . . . . Allies | -11 -10 -10 -9 -9 -9 -8 -8 -7 -7 -------- Run | Yrd Mat Min Mat Min Exi Min Mat Fac Gar Total Allies 3 | . . . . 2 . . . . 1 Largest Group 2 | . . . . 2 2 . . . 1 Highest-Rated Group 47 | . . . . 47 47 . . . 39 Highest-Rated Ally 39 | . . . . 31 31 . . . 39 Total Orders . | . . . . . . . . . . Ally Attacks 29 | . . . . . . . . . 29 Total Damage 575 | . . . . . . . . . 575 Kills 8 | . . . . . . . . . 8 Allies Corrupted . | . . . . . . . . . . Allies Melted . | . . . . . . . . . . Intel | -11 -10 -10 -9 -9 -9 -8 -8 -7 -7 ------- Run | Yrd Mat Min Mat Min Exi Min Mat Fac Gar Active Infowar (turns) 4019 | . . . 1091 244 398 190 1564 27 505 Seismic 514 | . . . 514 . . . . . . T.N.C. 2973 | . . . 577 244 398 190 1564 . . Machine Analysis 532 | . . . . . . . . 27 505 Robot Analysis Total . | . . . . . . . . . . Derelict Logs Recovered 2 | . . 1 . 1 . . . . . Drone Launches . | . . . . . . . . . . Drone Recoveries . | . . . . . . . . . . Exploration | -11 -10 -10 -9 -9 -9 -8 -8 -7 -7 ------------- Run | Yrd Mat Min Mat Min Exi Min Mat Fac Gar Turns Passed 5531 | 63 649 130 1143 244 398 190 2175 31 508 Spaces Moved 2857 | 36 310 69 538 145 247 88 804 50 570 Core 129 | 10 . . 55 . . . 30 . 34 Treads 1847 | 26 310 69 277 145 247 88 685 . . Legs 101 | . . . 58 . . . 43 . . Wheels . | . . . . . . . . . . Hover 148 | . . . 148 . . . . . . Flight 632 | . . . . . . . 46 50 536 Fastest Speed 34 | 50 160 160 112 160 160 160 156 39 34 Average Speed 154 | 139 160 160 176 160 160 160 220 39 41 Slowest Speed 800 | 160 160 160 500 160 160 160 800 39 385 Overloaded Moves . | . . . . . . . . . . Propulsion Burnouts . | . . . . . . . . . . Robots Hopped 1 | . . . . . . . . . 1 Potential Cave-ins . | . . . . . . . . . . Cave-ins Triggered . | . . . . . . . . . . Exploration Rate (%) 36 | 4 52 34 43 33 60 31 51 2 59 Regions Visited 9 Branch Regions 4 Pre-discovered Areas . | . . . . . . . . . . Known Exits Taken 2 | . . . . 1 . . . 1 . Unknown Exits Taken 7 | 1 1 1 1 . 1 1 1 . . Scrap Searched 2 | . . . . 1 . 1 . . . Spaces Dug . | . . . . . . . . . . Terrain Destroyed 139 | . . . 2 . . 43 . . 94 Melee . | . . . . . . . . . . Projectile 11 | . . . 2 . . 3 . . 6 AOE 125 | . . . . . . 40 . . 85 Terrain Rammed . | . . . . . . . . . . Walls Destroyed . | . . . . . . . . . . Machines Disabled . | . . . . . . . . . . Actions | -11 -10 -10 -9 -9 -9 -8 -8 -7 -7 --------- Run | Yrd Mat Min Mat Min Exi Min Mat Fac Gar Total 3453 | 47 369 79 631 156 251 114 1014 61 731 Wait 55 | . . . 4 9 . . 18 . 24 Move 2846 | 35 309 68 537 144 246 87 803 49 568 Hop 1 | . . . . . . . . . 1 Pick Up 55 | 6 3 1 17 . 2 1 19 1 5 Fast Attach 23 | 4 5 . 3 . . . 11 . . Attach 23 | 2 . . 9 . . 1 4 3 4 Detach 1 | . . . . . . . . 1 . Swap 29 | . 1 . 4 3 . . 12 3 6 Drop 39 | . . . 5 . 3 2 20 4 5 Fire 320 | . 48 10 49 . . 21 118 . 74 Melee 7 | . . . . . . . 2 . 5 Ram 7 | . . . 1 . . . 3 . 3 Kick . | . . . . . . . . . . Crush 11 | . 3 . 2 . . 2 4 . . Escape Stasis 36 | . . . . . . . . . 36 Rewire . | . . . . . . . . . . Trap . | . . . . . . . . . . Miscellaneous . | . . . . . . . . . . Route ------- -11/Scrapyard -10/Materials -10/Mines -9/Materials (discovered 2 exits: *Mat / [*Min]) -9/Mines (discovered 2 exits: *Mat / *Exi) -9/Exiles -8/Mines -8/Materials (discovered 2 exits: *Fac x2) -7/Factory -7/Garrison (discovered 2 exits: [*Fac x2]) History --------- Turn | Location | Event 12 | -11/Scrapyard | Discovered new exit (range 15) 64 | -11/Scrapyard | Entered Materials 304 | -10/Materials | Build established: Mutant 603 | -10/Materials | Core integrity fell below 50% 697 | -10/Materials | Discovered new exit (range 11) 713 | -10/Materials | Entered Mines 756 | -10/Mines | Received a Rocket Launcher from a helpful Derelict 760 | -10/Mines | Learned Materials non-interactive machine intel 840 | -10/Mines | Discovered new exit (range 2) 843 | -10/Mines | Entered Materials 843 | -9/Materials | Evolved 2 slots: Propulsion x1, Utility x1 844 | -9/Materials | Loaded intel: 43 non-interactive machine locations 1181 | -9/Materials | Lost 3 parts (1p1n1w) 1207 | -9/Materials | Discovered new exit (range 8) 1520 | -9/Materials | Core integrity fell below 50% 1535 | -9/Materials | Lost 4 parts (1p2n1u) 1970 | -9/Materials | Discovered new exit (range 12) 1986 | -9/Materials | Entered Mines 1991 | -9/Mines | Discovered new exit (range 10) 2095 | -9/Mines | A weapon hastily lodged in a ceiling crevice suddenly fell to the ground 2159 | -9/Mines | Identified exit to Exiles 2212 | -9/Mines | Deemed a non-threat by the Exiles lab entrance 2230 | -9/Mines | Entered Exiles 2230 | -9/Exiles | Accompanied by 2 allies 2260 | -9/Exiles | Led the pair of lost Derelicts to a safe place 2267 | -9/Exiles | Met 8R-AWN 2296 | -9/Exiles | Met EX-HEX 2349 | -9/Exiles | Met EX-BIN 2370 | -9/Exiles | Aligned with FarCom system 2371 | -9/Exiles | Given EX-Vault access code 2413 | -9/Exiles | Opened EX-Vault 2435 | -9/Exiles | Found Flying Fortress v7 2476 | -9/Exiles | Warned to stay clear of 0b10 Research branches 2529 | -9/Exiles | Met EX-DEC 2615 | -9/Exiles | Discovered new exit (range 10) 2628 | -9/Exiles | Left Exiles lab with Flying Fortress v7 2628 | -9/Exiles | Entered Mines 2803 | -8/Mines | Discovered new exit (range 7) 2818 | -8/Mines | Entered Materials 2818 | -8/Materials | Evolved 2 slots: Propulsion x1, Utility x1 3242 | -8/Materials | Lost 4 parts (3n1u) 3344 | -8/Materials | Build established: Scavenger-Mutant 3380 | -8/Materials | Discovered new exit (range 16) 4294 | -8/Materials | Discovered new exit (range 13) 4340 | -8/Materials | Garrison activated, responded to threat 4524 | -8/Materials | Core integrity fell below 50% 4766 | -8/Materials | Lost 3 parts (1p2n) 4993 | -8/Materials | Entered Factory 4993 | -7/Factory | Evolved 2 slots: Propulsion x1, Utility x1 5023 | -7/Factory | Identified exit to Garrison 5024 | -7/Factory | Entered Garrison 5092 | -7/Garrison | Triggered checkpoint 5206 | -7/Garrison | Triggered checkpoint 5219 | -7/Garrison | Discovered new exit (range 8) 5230 | -7/Garrison | Triggered checkpoint 5240 | -7/Garrison | Rescued a captive Derelict 5323 | -7/Garrison | Build established: Mutant 5366 | -7/Garrison | Triggered checkpoint 5389 | -7/Garrison | Triggered checkpoint 5514 | -7/Garrison | Core integrity fell below 50% 5514 | -7/Garrison | Discovered new exit (range 10) 5522 | -7/Garrison | Triggered checkpoint 5530 | -7/Garrison | Core integrity fell below 20% 5532 | -7/Garrison | Destroyed by Y-54 Guardian with Flak Gun Last Messages --------------- 05509_ Field strength at 32. 05510_ Field strength at 26. 05511_ Field strength at 12. 05512_ C-45 Heavy ARC bursts open, deploying its payload. 05512_ G-50 Soldier unfolds itself. 05512_ G-47 Trooper unfolds itself. 05512_ Field strength at 2. 05513_ Stasis field depleted. 05514_ Adv. Beam Rifle destroyed. 05514_ Critical hit (Burn: +37). 05514_ EXIT=FOUND 05516_ Lrg. Battery destroyed. 05522_ Beams of light sweep through the air. An alarm sounds. 05522_ System corrupted: Matter fused (-7). 05529_ Slammed into P-60 Hacker. 05529_ Machine Analyzer broken. 05529_ Destabilizing: Short circuit. 05530_ Slammed into P-60 Hacker. 05530_ P-60 Hacker knocked back. 05531_ Slammed into P-60 Hacker. Map ----- +----------------------------------------------------+ | ????????????????????????????????????????????????? | | ????????????????????????????????????????????????? | | ????????????????????????????????????????????????? | | ????????????????????????????????????????????????? | | ????????????????????????????????????????????????? | | ????????????????????????????????????????????????? | | ????????????????????????????????????????????????? | | ????????????????????????????????????????????????? | | ????????????????????????????????????????????????? | | ????????????????????????????????????????????????? | | ????????????????????????????????????????????????? | | ????????????????????????????????????????????????? | | ????????????????????????????????????????????????? | | ???????????????????????###???#####??????????????? | | ?????????????????????## #??? #??????????????? | | ?????????????????????# ???< #??????????????? | | ?????????????????????? ??? #??????????????? | | ?????????????????????? ???# #??????????????? | | ??????????????????????? ???# #??????????????? | | ???????????????????????? #???# #??????????????? | | ????????????????????????# #???# #??????????????? | | ????????????????????????# ##### #??????????????? | | ????????????????????????# ##############?? | | ??????????????????????### ##### ^^% #?? | | ??????????????????????# #???# " #?? | | ??????????????????????# @p#???#g######+##### #?? | | ??????????????????????# Y #####g##?????????# #?? | | ??????????????????????# p p gh #???# #?? | | ??????????????????????# Y ########?????????# #?? | | ??????????????????????### #????????????????# #?? | | ????????????????????????# #????????????????# ### | | ????????????????????????# #????????????????# ## | | ????????????????????????# ###?????????????## ## | | ????????????????????????# #"#?????????????# | | ????????????????????????# "#?????????????+ | | ????????????????????????# "#?????????????# | | ????????????????????????# "#?????????????# ## | | ????????????????????????# #"#?????????????# ## | | ????????????????????????#####???????????? | | ????????????????????????????????????????# | | ????????????????????????????????????????# | | ????????????????????????????????????????# | | ??????????????????????######????????????### | | ??????????????????????#!!!!#????########## # | | ??????????????????????#! ###### | | ??????????????????????# + | | ??????????????????????#[ [ ###### ######## | | ??????????????????????# [[#????# #??????## ## | | ??????????###########?######????# #???????# ## | | ??????????" " "&&" #???????????# #???????# ### | +----------------------------------------------------+ Best States ------------- Heat Dissipation 48 Energy Generation 14 Energy Capacity 360 Matter Stores 300 Matter Capacity 300 Sight Range 16 Terrain Scan Density 10 Armor Coverage 375 Resistance: KI 20 Evasion (%) 62 Recoil Reduction 4 Item Schematics ----------------- Imp. Flight Unit | -9/Materials | Scanalyzed Robot Schematics ------------------ None Fabricated ------------ Nothing Repaired ---------- Nothing Studied --------- None Alien Tech Used ----------------- None Achievements -------------- None Challenges ------------ None Game ------ Seed PlexusMicrowarpFlail Manual? 0 Play Time 00:46:17 Cumulative 61.9 hours Start 2026.04.18 @ 13:14:04 End 2026.04.18 @ 13:59:04 Sessions 1 Manual Loads 0 Difficulty Rogue Special Mode None Game No. 121 Rogue 121 Adventurer 0 Explorer 0 Win Type - Total 0 Types 0/0/0/0/0/0/0/0/0/0 Lore% 15 Gallery% 31 Achievement% 21 Wizard Run 0 Options --------- Layout 0 ASCII 0 Keyboard 1 Movement Vi Keybinds 0 Fullscreen 2 Font 18/T_Terminus Map View 76x50 Zoom Use 0% Tactical HUD 1 Map Filters SHIFT_HUE(5) Filters LOW_CONTRAST(10,2,20)|SHIFT_HUE(5) Steam 1 RUN: d153c2ae-5c04-4be0-8037-e9533b98165b